[Event "Early-Titled-Tuesday-Blitz-February-27-2024"]
[Site "Chess.com"]
[Date "2024.02.27"]
[Round "4"]
[White "Winner_7777"]
[Black "mr_gustavo"]
[Result "1-0"]
[WhiteElo "2552"]
[BlackElo "2717"]
[TimeControl "180+1"]
[EndTime "8:38:30 PST"]
[Termination "Winner_7777 won by resignation"]

1. d4 {[%clk 0:02:51.5]} 1... Nf6 {[%clk 0:02:59.6]} 2. c4 {[%clk 0:02:52.2]}
2... g6 {[%clk 0:02:59.8]} 3. Nc3 {[%clk 0:02:52.9]} 3... d5 {[%clk 0:02:59.2]}
4. cxd5 {[%clk 0:02:52.8]} 4... Nxd5 {[%clk 0:02:59.4]} 5. e4 {[%clk 0:02:53.7]}
5... Nxc3 {[%clk 0:02:59.7]} 6. bxc3 {[%clk 0:02:54.6]} 6... Bg7 {[%clk
0:02:59.9]} 7. Be3 {[%clk 0:02:55.3]} 7... O-O {[%clk 0:02:59.7]} 8. Qd2 {[%clk
0:02:55.9]} 8... c5 {[%clk 0:02:59.9]} 9. Nf3 {[%clk 0:02:55]} 9... Qa5 {[%clk
0:02:56.8]} 10. Rb1 {[%clk 0:02:53.3]} 10... Nd7 {[%clk 0:02:41.9]} 11. Bd3
{[%clk 0:02:22.8]} 11... cxd4 {[%clk 0:02:30.3]} 12. cxd4 {[%clk 0:02:23.6]}
12... Qxd2+ {[%clk 0:02:29.3]} 13. Kxd2 {[%clk 0:02:21.8]} 13... b6 {[%clk
0:02:29.1]} 14. Rhc1 {[%clk 0:02:20.2]} 14... Nf6 {[%clk 0:02:18.1]} 15. Rc7
{[%clk 0:02:15.9]} 15... e6 {[%clk 0:02:12.4]} 16. Rbc1 {[%clk 0:02:06.2]} 16...
Rd8 {[%clk 0:01:59.8]} 17. Ne5 {[%clk 0:01:52.9]} 17... Ne8 {[%clk 0:01:59]} 18.
Nc6 {[%clk 0:01:46.5]} 18... Nxc7 {[%clk 0:01:54.1]} 19. Nxd8 {[%clk 0:01:46.6]}
19... Ne8 {[%clk 0:01:43.7]} 20. Nc6 {[%clk 0:01:32.2]} 20... Bb7 {[%clk
0:01:43.3]} 21. e5 {[%clk 0:01:29.5]} 21... Bf8 {[%clk 0:01:40.2]} 22. Be4
{[%clk 0:01:23.3]} 22... Rc8 {[%clk 0:01:35.1]} 23. f3 {[%clk 0:00:50.2]} 23...
f5 {[%clk 0:01:27.3]} 24. Ne7+ {[%clk 0:00:46.7]} 24... Bxe7 {[%clk 0:01:22.5]}
25. Bxb7 {[%clk 0:00:47.2]} 25... Rxc1 {[%clk 0:01:20.2]} 26. Kxc1 {[%clk
0:00:47.2]} 26... Nc7 {[%clk 0:01:16.6]} 27. Kc2 {[%clk 0:00:42.3]} 27... Kf7
{[%clk 0:01:16.1]} 28. Kb3 {[%clk 0:00:41.7]} 28... Ke8 {[%clk 0:01:11.1]} 29.
Bc6+ {[%clk 0:00:34.7]} 29... Kd8 {[%clk 0:01:10.6]} 30. Kc4 {[%clk 0:00:35.1]}
30... Ba3 {[%clk 0:00:56.8]} 31. Bg5+ {[%clk 0:00:23.2]} 31... Be7 {[%clk
0:00:55.4]} 32. h4 {[%clk 0:00:17.1]} 32... h5 {[%clk 0:00:48.3]} 33. g3 {[%clk
0:00:07.5]} 33... Bxg5 {[%clk 0:00:42.9]} 34. hxg5 {[%clk 0:00:08.4]} 34... h4
{[%clk 0:00:30.8]} 35. gxh4 {[%clk 0:00:08.3]} 35... Ke7 {[%clk 0:00:24.3]} 36.
f4 {[%clk 0:00:06.6]} 36... Kd8 {[%clk 0:00:20.4]} 37. a4 {[%clk 0:00:06.9]}
37... Ke7 {[%clk 0:00:20.1]} 38. d5 {[%clk 0:00:05.4]} 38... exd5+ {[%clk
0:00:19.3]} 39. Bxd5 {[%clk 0:00:06.3]} 39... Kd7 {[%clk 0:00:16.1]} 40. Bf7
{[%clk 0:00:06.1]} 40... Ke7 {[%clk 0:00:15.7]} 41. Bxg6 {[%clk 0:00:06.7]}
41... Ke6 {[%clk 0:00:16.6]} 42. h5 {[%clk 0:00:06.2]} 1-0

[Event "Early-Titled-Tuesday-Blitz-February-27-2024"]
[Site "Chess.com"]
[Date "2024.02.27"]
[Round "4"]
[White "mightysmasher"]
[Black "Ramla2020"]
[Result "1-0"]
[WhiteElo "2551"]
[BlackElo "2399"]
[TimeControl "180+1"]
[EndTime "8:38:31 PST"]
[Termination "mightysmasher won by resignation"]

1. e4 {[%clk 0:02:57.8]} 1... e5 {[%clk 0:02:59.9]} 2. Nf3 {[%clk 0:02:56.2]}
2... d6 {[%clk 0:03:00]} 3. d4 {[%clk 0:02:56.1]} 3... Nd7 {[%clk 0:03:00.9]} 4.
dxe5 {[%clk 0:02:55.2]} 4... dxe5 {[%clk 0:03:01]} 5. Nc3 {[%clk 0:02:55.6]}
5... c6 {[%clk 0:03:01.2]} 6. Bc4 {[%clk 0:02:55.6]} 6... Be7 {[%clk 0:03:00.9]}
7. O-O {[%clk 0:02:54.1]} 7... Ngf6 {[%clk 0:03:00.8]} 8. Re1 {[%clk 0:02:46.1]}
8... b5 {[%clk 0:02:59.1]} 9. Bb3 {[%clk 0:02:44.2]} 9... Qc7 {[%clk 0:02:57.5]}
10. Nh4 {[%clk 0:02:40.5]} 10... Nc5 {[%clk 0:02:56.5]} 11. Nf5 {[%clk
0:02:38.7]} 11... Bxf5 {[%clk 0:02:53.2]} 12. exf5 {[%clk 0:02:39.6]} 12... O-O
{[%clk 0:02:26.9]} 13. Bg5 {[%clk 0:02:35.8]} 13... Rad8 {[%clk 0:02:19.4]} 14.
Qe2 {[%clk 0:02:29.6]} 14... e4 {[%clk 0:02:19.2]} 15. h3 {[%clk 0:02:06.2]}
15... a5 {[%clk 0:02:10.1]} 16. a4 {[%clk 0:02:04.2]} 16... b4 {[%clk
0:02:07.7]} 17. Bxf6 {[%clk 0:01:54.8]} 17... Bxf6 {[%clk 0:02:01.9]} 18. Nxe4
{[%clk 0:01:53.4]} 18... Nxe4 {[%clk 0:02:01.4]} 19. Qxe4 {[%clk 0:01:53.5]}
19... Bxb2 {[%clk 0:02:02.3]} 20. Rad1 {[%clk 0:01:52.7]} 20... Bc3 {[%clk
0:02:00.5]} 21. Rxd8 {[%clk 0:01:50.6]} 21... Qxd8 {[%clk 0:01:58.5]} 22. Rf1
{[%clk 0:01:49.9]} 22... Qd6 {[%clk 0:01:52.9]} 23. Bc4 {[%clk 0:01:41.4]} 23...
h6 {[%clk 0:01:52.2]} 24. Bd3 {[%clk 0:01:40.8]} 24... Bf6 {[%clk 0:01:51.1]}
25. Qc4 {[%clk 0:01:38.3]} 25... Re8 {[%clk 0:01:43.2]} 26. Qb3 {[%clk 0:01:29]}
26... Re7 {[%clk 0:01:39.1]} 27. Qc4 {[%clk 0:01:24.3]} 27... Re5 {[%clk
0:01:33.6]} 28. Qa6 {[%clk 0:01:18.4]} 28... Qc5 {[%clk 0:01:28.3]} 29. Qc8+
{[%clk 0:01:02.3]} 29... Kh7 {[%clk 0:01:25.1]} 30. Qa6 {[%clk 0:01:00.8]} 30...
Kg8 {[%clk 0:01:19.3]} 31. Rd1 {[%clk 0:00:58]} 31... Rd5 {[%clk 0:01:15.7]} 32.
Re1 {[%clk 0:00:55.5]} 32... Re5 {[%clk 0:01:15.5]} 33. Rd1 {[%clk 0:00:49.3]}
33... Rd5 {[%clk 0:01:15]} 34. Qc8+ {[%clk 0:00:48]} 34... Kh7 {[%clk
0:01:11.4]} 35. Qe8 {[%clk 0:00:40.5]} 35... Qd6 {[%clk 0:00:48.5]} 36. Qxf7
{[%clk 0:00:33.7]} 36... Qe7 {[%clk 0:00:46.5]} 37. Qxe7 {[%clk 0:00:28.2]}
37... Bxe7 {[%clk 0:00:46.4]} 38. f6+ {[%clk 0:00:28.3]} 38... Rxd3 {[%clk
0:00:46.2]} 39. Rxd3 {[%clk 0:00:26.1]} 39... Bxf6 {[%clk 0:00:47.1]} 40. Rd6
{[%clk 0:00:26.1]} 40... c5 {[%clk 0:00:46.6]} 41. Rc6 {[%clk 0:00:25.8]} 41...
Bd4 {[%clk 0:00:46.4]} 42. Kf1 {[%clk 0:00:25.3]} 42... Kg8 {[%clk 0:00:45.3]}
43. Ke2 {[%clk 0:00:24.4]} 43... Kf7 {[%clk 0:00:45.8]} 44. Kd3 {[%clk
0:00:24.8]} 44... Bxf2 {[%clk 0:00:45.6]} 45. Ra6 {[%clk 0:00:24.8]} 45... h5
{[%clk 0:00:39.6]} 46. Rxa5 {[%clk 0:00:23.8]} 46... Ke6 {[%clk 0:00:40.5]} 47.
Kc4 {[%clk 0:00:18.8]} 47... Kd6 {[%clk 0:00:39]} 48. Ra6+ {[%clk 0:00:19]}
48... Kc7 {[%clk 0:00:37.4]} 49. Rg6 {[%clk 0:00:19.9]} 49... Bd4 {[%clk
0:00:37.2]} 50. a5 {[%clk 0:00:19.5]} 50... Kb7 {[%clk 0:00:37.1]} 51. a6+
{[%clk 0:00:19.2]} 51... Ka7 {[%clk 0:00:38]} 52. Kb5 {[%clk 0:00:19.5]} 52...
Be3 {[%clk 0:00:37]} 53. Re6 {[%clk 0:00:19.8]} 53... Bg5 {[%clk 0:00:34.8]} 54.
Kxc5 {[%clk 0:00:19.2]} 1-0

[Event "Early-Titled-Tuesday-Blitz-February-27-2024"]
[Site "Chess.com"]
[Date "2024.02.27"]
[Round "4"]
[White "JJDAREK"]
[Black "Kildepiotr"]
[Result "0-1"]
[WhiteElo "2409"]
[BlackElo "2673"]
[TimeControl "180+1"]
[EndTime "8:38:34 PST"]
[Termination "Kildepiotr won by checkmate"]

1. d4 {[%clk 0:03:00.9]} 1... c5 {[%clk 0:02:58]} 2. d5 {[%clk 0:03:00.6]} 2...
e5 {[%clk 0:02:58.5]} 3. e4 {[%clk 0:03:00.2]} 3... d6 {[%clk 0:02:59]} 4. c4
{[%clk 0:03:00]} 4... Be7 {[%clk 0:02:59.1]} 5. Nc3 {[%clk 0:03:00.3]} 5... Bg5
{[%clk 0:02:59]} 6. Bd3 {[%clk 0:02:52.6]} 6... Bxc1 {[%clk 0:02:58.6]} 7. Rxc1
{[%clk 0:02:52.8]} 7... Ne7 {[%clk 0:02:59.5]} 8. Nge2 {[%clk 0:02:52.5]} 8...
O-O {[%clk 0:02:59.6]} 9. O-O {[%clk 0:02:52.7]} 9... Nd7 {[%clk 0:02:59.9]} 10.
Kh1 {[%clk 0:02:50.6]} 10... Ng6 {[%clk 0:02:59.4]} 11. g3 {[%clk 0:02:49.1]}
11... Nf6 {[%clk 0:02:54.8]} 12. f4 {[%clk 0:02:43.2]} 12... Ng4 {[%clk
0:02:53.6]} 13. Qd2 {[%clk 0:02:39.3]} 13... exf4 {[%clk 0:02:48.1]} 14. Nxf4
{[%clk 0:02:25.1]} 14... N4e5 {[%clk 0:02:43.8]} 15. Nxg6 {[%clk 0:02:14.7]}
15... hxg6 {[%clk 0:02:43.5]} 16. Rf4 {[%clk 0:02:02.4]} 16... g5 {[%clk
0:02:43.2]} 17. Rf2 {[%clk 0:01:57.7]} 17... Bh3 {[%clk 0:02:38.8]} 18. b3
{[%clk 0:01:55]} 18... Qd7 {[%clk 0:02:28.2]} 19. Bf1 {[%clk 0:01:50.6]} 19...
a6 {[%clk 0:02:16.3]} 20. Qxg5 {[%clk 0:01:45.4]} 20... f6 {[%clk 0:02:07.1]}
21. Qh4 {[%clk 0:01:21]} 21... Bg4 {[%clk 0:02:06.6]} 22. Be2 {[%clk 0:01:13.6]}
22... Bxe2 {[%clk 0:01:59.9]} 23. Rxe2 {[%clk 0:01:14.5]} 23... g5 {[%clk
0:01:57]} 24. Qh5 {[%clk 0:01:11.4]} 24... Kg7 {[%clk 0:01:51.3]} 25. Rf2 {[%clk
0:01:11]} 25... Rh8 {[%clk 0:01:49.2]} 26. Qe2 {[%clk 0:01:11.4]} 26... Ng4
{[%clk 0:01:44.3]} 27. Rg2 {[%clk 0:01:09]} 27... Rh3 {[%clk 0:01:41.7]} 28. e5
{[%clk 0:01:03.5]} 28... Nxe5 {[%clk 0:01:38.1]} 29. Ne4 {[%clk 0:00:59.3]}
29... Rah8 {[%clk 0:01:34.6]} 30. Rf1 {[%clk 0:00:58.7]} 30... Ng4 {[%clk
0:01:32.9]} 31. Kg1 {[%clk 0:00:46]} 31... Rxh2 {[%clk 0:01:27.4]} 32. Rxh2
{[%clk 0:00:43.4]} 32... Rxh2 {[%clk 0:01:26.7]} 33. Qf3 {[%clk 0:00:43.1]}
33... Rh6 {[%clk 0:01:18.3]} 34. Qf5 {[%clk 0:00:39.2]} 34... Qxf5 {[%clk
0:01:01]} 35. Rxf5 {[%clk 0:00:40.1]} 35... Kg6 {[%clk 0:00:58.7]} 36. Nxd6
{[%clk 0:00:38.4]} 36... Rh2 {[%clk 0:00:54.4]} 37. Rf1 {[%clk 0:00:32.7]} 37...
b6 {[%clk 0:00:48.9]} 38. Nc8 {[%clk 0:00:29]} 38... b5 {[%clk 0:00:45.4]} 39.
d6 {[%clk 0:00:27.6]} 39... Rd2 {[%clk 0:00:38.4]} 40. Re1 {[%clk 0:00:21.9]}
40... bxc4 {[%clk 0:00:36]} 41. bxc4 {[%clk 0:00:22.8]} 41... Ne5 {[%clk
0:00:35.1]} 42. Rb1 {[%clk 0:00:20.1]} 42... Nxc4 {[%clk 0:00:30.8]} 43. Rb7
{[%clk 0:00:19]} 43... Nxd6 {[%clk 0:00:27.2]} 44. Nxd6 {[%clk 0:00:19.7]} 44...
Rxd6 {[%clk 0:00:27.7]} 45. Rc7 {[%clk 0:00:20.1]} 45... Rd2 {[%clk 0:00:26.2]}
46. Rxc5 {[%clk 0:00:19.4]} 46... Rxa2 {[%clk 0:00:26.2]} 47. Rc6 {[%clk
0:00:19.7]} 47... Kf5 {[%clk 0:00:23.8]} 48. Rc4 {[%clk 0:00:19.6]} 48... a5
{[%clk 0:00:21.1]} 49. Kf1 {[%clk 0:00:20.1]} 49... a4 {[%clk 0:00:21.1]} 50.
Kg1 {[%clk 0:00:21]} 50... a3 {[%clk 0:00:20.9]} 51. Kf1 {[%clk 0:00:21.3]}
51... Rb2 {[%clk 0:00:20]} 52. Rc5+ {[%clk 0:00:18.7]} 52... Kg4 {[%clk
0:00:18.6]} 53. Rc4+ {[%clk 0:00:19.3]} 53... Kh3 {[%clk 0:00:18.7]} 54. Rc3
{[%clk 0:00:19.1]} 54... a2 {[%clk 0:00:18.2]} 55. g4+ {[%clk 0:00:20]} 55...
Kxg4 {[%clk 0:00:17.8]} 56. Kg1 {[%clk 0:00:19.9]} 56... a1=R+ {[%clk
0:00:16.5]} 57. Rc1 {[%clk 0:00:18.5]} 57... Rxc1# {[%clk 0:00:16.7]} 0-1

[Event "Early-Titled-Tuesday-Blitz-February-27-2024"]
[Site "Chess.com"]
[Date "2024.02.27"]
[Round "4"]
[White "Honiex"]
[Black "GianmarcoVaR"]
[Result "1-0"]
[WhiteElo "2554"]
[BlackElo "2717"]
[TimeControl "180+1"]
[EndTime "8:38:36 PST"]
[Termination "Honiex won by resignation"]

1. Nc3 {[%clk 0:03:00.9]} 1... e5 {[%clk 0:02:55.5]} 2. Nf3 {[%clk 0:03:00.3]}
2... Nc6 {[%clk 0:02:51.1]} 3. d4 {[%clk 0:03:00.4]} 3... exd4 {[%clk
0:02:46.1]} 4. Nxd4 {[%clk 0:03:01.3]} 4... d5 {[%clk 0:02:45.7]} 5. e4 {[%clk
0:02:51]} 5... Nf6 {[%clk 0:02:37.1]} 6. Bb5 {[%clk 0:02:47]} 6... Bd7 {[%clk
0:02:18.6]} 7. exd5 {[%clk 0:02:40]} 7... Nxd4 {[%clk 0:02:18.4]} 8. Qxd4 {[%clk
0:02:40.7]} 8... Bxb5 {[%clk 0:02:18]} 9. Nxb5 {[%clk 0:02:41.6]} 9... a6 {[%clk
0:02:10.2]} 10. Nc3 {[%clk 0:02:39.8]} 10... Qe7+ {[%clk 0:02:01.7]} 11. Be3
{[%clk 0:02:37.6]} 11... g6 {[%clk 0:01:35.3]} 12. O-O-O {[%clk 0:02:04.3]}
12... Bg7 {[%clk 0:01:35.7]} 13. Rhe1 {[%clk 0:01:58.2]} 13... O-O {[%clk
0:01:34.6]} 14. Kb1 {[%clk 0:01:40.4]} 14... Rfe8 {[%clk 0:01:32.1]} 15. h3
{[%clk 0:01:20.2]} 15... Rad8 {[%clk 0:01:21]} 16. Re2 {[%clk 0:01:08.6]} 16...
Nh5 {[%clk 0:00:19.3]} 17. Qd3 {[%clk 0:00:50.8]} 17... Bxc3 {[%clk 0:00:18]}
18. Qxc3 {[%clk 0:00:45.2]} 18... Nf4 {[%clk 0:00:18.6]} 19. Red2 {[%clk
0:00:42.9]} 19... Nxg2 {[%clk 0:00:16.8]} 20. Bc5 {[%clk 0:00:42.5]} 20... Qe5
{[%clk 0:00:15.4]} 21. Bd4 {[%clk 0:00:35.5]} 21... Qh5 {[%clk 0:00:10.8]} 22.
Bh8 {[%clk 0:00:30.3]} 22... Qh6 {[%clk 0:00:11.1]} 23. Bf6 {[%clk 0:00:25.8]}
23... Rd6 {[%clk 0:00:06.2]} 24. a3 {[%clk 0:00:19.4]} 24... Nf4 {[%clk
0:00:02.5]} 25. Be5 {[%clk 0:00:17.4]} 25... Nh5 {[%clk 0:00:02.2]} 26. Bxd6
{[%clk 0:00:16.9]} 26... cxd6 {[%clk 0:00:03.1]} 27. Qc7 {[%clk 0:00:15.8]}
27... Qf4 {[%clk 0:00:02.9]} 28. Qxb7 {[%clk 0:00:14.3]} 28... Nf6 {[%clk
0:00:02.6]} 29. Qxa6 {[%clk 0:00:14]} 29... Ne4 {[%clk 0:00:02.9]} 30. Rd3
{[%clk 0:00:08.7]} 30... Nc5 {[%clk 0:00:02.7]} 31. Qb5 {[%clk 0:00:07.2]} 31...
Re7 {[%clk 0:00:03.1]} 32. Rd4 {[%clk 0:00:07]} 32... Qxf2 {[%clk 0:00:03]} 33.
a4 {[%clk 0:00:07.3]} 33... Rb7 {[%clk 0:00:03.1]} 34. Qc4 {[%clk 0:00:05.2]}
34... Qf6 {[%clk 0:00:02.5]} 35. a5 {[%clk 0:00:04.2]} 35... Kg7 {[%clk
0:00:02.2]} 36. a6 {[%clk 0:00:04.5]} 36... Ra7 {[%clk 0:00:02.4]} 37. Rf4
{[%clk 0:00:04.2]} 37... Qe7 {[%clk 0:00:02.2]} 38. Qd4+ {[%clk 0:00:04.5]}
38... Qe5 {[%clk 0:00:02]} 39. Qxe5+ {[%clk 0:00:04.2]} 39... dxe5 {[%clk
0:00:02.9]} 40. Rc4 {[%clk 0:00:04.5]} 40... Nxa6 {[%clk 0:00:02.6]} 41. d6
{[%clk 0:00:04.7]} 41... Rd7 {[%clk 0:00:02.3]} 42. Rc6 {[%clk 0:00:04.8]} 42...
Nb4 {[%clk 0:00:02.3]} 43. Rc7 {[%clk 0:00:05]} 43... Rd8 {[%clk 0:00:02.6]} 44.
d7 {[%clk 0:00:04.8]} 44... e4 {[%clk 0:00:02.9]} 45. Rc8 {[%clk 0:00:05.1]}
45... Rxc8 {[%clk 0:00:02.4]} 46. dxc8=Q {[%clk 0:00:06]} 46... e3 {[%clk
0:00:02.2]} 47. Qc3+ {[%clk 0:00:06.5]} 1-0

[Event "Early-Titled-Tuesday-Blitz-February-27-2024"]
[Site "Chess.com"]
[Date "2024.02.27"]
[Round "4"]
[White "Yan_Dyomin2010"]
[Black "SaiAgni_98"]
[Result "0-1"]
[WhiteElo "2744"]
[BlackElo "2568"]
[TimeControl "180+1"]
[EndTime "8:38:38 PST"]
[Termination "SaiAgni_98 won by resignation"]

1. e4 {[%clk 0:03:00.9]} 1... c5 {[%clk 0:02:59.3]} 2. Nf3 {[%clk 0:03:00.5]}
2... g6 {[%clk 0:02:59.3]} 3. d4 {[%clk 0:02:59]} 3... cxd4 {[%clk 0:03:00.2]}
4. Qxd4 {[%clk 0:02:59.4]} 4... Nf6 {[%clk 0:02:59.6]} 5. c4 {[%clk 0:02:58.2]}
5... Nc6 {[%clk 0:02:57.3]} 6. Qe3 {[%clk 0:02:57.6]} 6... d6 {[%clk 0:02:56.9]}
7. Nc3 {[%clk 0:02:57.8]} 7... Bg7 {[%clk 0:02:57.1]} 8. h3 {[%clk 0:02:56.2]}
8... O-O {[%clk 0:02:57]} 9. Be2 {[%clk 0:02:56]} 9... Nd7 {[%clk 0:02:48.4]}
10. O-O {[%clk 0:02:55.3]} 10... Nc5 {[%clk 0:02:45.1]} 11. Rb1 {[%clk
0:02:43.2]} 11... a5 {[%clk 0:02:44.6]} 12. b3 {[%clk 0:02:41.3]} 12... f5
{[%clk 0:02:36.7]} 13. Bb2 {[%clk 0:01:56.1]} 13... fxe4 {[%clk 0:01:55.8]} 14.
Ng5 {[%clk 0:01:47.8]} 14... Bd4 {[%clk 0:01:49]} 15. Qg3 {[%clk 0:01:46.6]}
15... e5 {[%clk 0:01:05.9]} 16. Ncxe4 {[%clk 0:01:36.8]} 16... Nxe4 {[%clk
0:00:52.4]} 17. Nxe4 {[%clk 0:01:35.5]} 17... Bf5 {[%clk 0:00:51.7]} 18. Bd3
{[%clk 0:01:24.1]} 18... Nb4 {[%clk 0:00:32.6]} 19. Bxd4 {[%clk 0:01:22.7]}
19... exd4 {[%clk 0:00:33.5]} 20. Rfe1 {[%clk 0:00:43.1]} 20... d5 {[%clk
0:00:29.3]} 21. cxd5 {[%clk 0:00:40.7]} 21... Nxd3 {[%clk 0:00:27.4]} 22. Qxd3
{[%clk 0:00:38.7]} 22... Qxd5 {[%clk 0:00:28.1]} 23. Rbd1 {[%clk 0:00:38.4]}
23... Rad8 {[%clk 0:00:25.4]} 24. f3 {[%clk 0:00:33.9]} 24... Kg7 {[%clk
0:00:25]} 25. Qd2 {[%clk 0:00:29.1]} 25... Bxe4 {[%clk 0:00:24.4]} 26. Rxe4
{[%clk 0:00:29.9]} 26... d3 {[%clk 0:00:19.7]} 27. Qc3+ {[%clk 0:00:29.5]} 27...
Kg8 {[%clk 0:00:19.6]} 28. Re3 {[%clk 0:00:24.2]} 28... d2 {[%clk 0:00:18.8]}
29. Re2 {[%clk 0:00:22.3]} 29... Qd4+ {[%clk 0:00:17.7]} 30. Qxd4 {[%clk
0:00:21.8]} 30... Rxd4 {[%clk 0:00:18.6]} 31. Rexd2 {[%clk 0:00:22.5]} 31...
Rxd2 {[%clk 0:00:19.4]} 32. Rxd2 {[%clk 0:00:23.4]} 32... Rf7 {[%clk 0:00:19.9]}
33. Kf2 {[%clk 0:00:23.4]} 33... Rc7 {[%clk 0:00:20.2]} 34. Ke3 {[%clk
0:00:22.1]} 34... Kf7 {[%clk 0:00:20.5]} 35. g4 {[%clk 0:00:21.3]} 35... Ke6
{[%clk 0:00:20.8]} 36. Kf4 {[%clk 0:00:21.1]} 36... h6 {[%clk 0:00:20.6]} 37. h4
{[%clk 0:00:20.7]} 37... Rf7+ {[%clk 0:00:20.4]} 38. Kg3 {[%clk 0:00:21]} 38...
Rc7 {[%clk 0:00:18.9]} 39. Re2+ {[%clk 0:00:21.5]} 39... Kd5 {[%clk 0:00:18.2]}
40. Rd2+ {[%clk 0:00:19.3]} 40... Ke5 {[%clk 0:00:18.1]} 41. Re2+ {[%clk
0:00:19.9]} 41... Kd5 {[%clk 0:00:18.4]} 42. Re3 {[%clk 0:00:18.8]} 42... b5
{[%clk 0:00:17.4]} 43. a4 {[%clk 0:00:17.6]} 43... b4 {[%clk 0:00:17.1]} 44. Kf4
{[%clk 0:00:16.5]} 44... Rc3 {[%clk 0:00:16.7]} 45. Rxc3 {[%clk 0:00:16.9]}
45... bxc3 {[%clk 0:00:17.6]} 46. Ke3 {[%clk 0:00:17.6]} 46... Kc5 {[%clk
0:00:17.6]} 47. Kd3 {[%clk 0:00:18.1]} 47... Kb4 {[%clk 0:00:18.3]} 48. Kc2
{[%clk 0:00:18.8]} 48... g5 {[%clk 0:00:19]} 49. hxg5 {[%clk 0:00:18.5]} 49...
hxg5 {[%clk 0:00:19.9]} 50. f4 {[%clk 0:00:09.6]} 50... gxf4 {[%clk 0:00:20.8]}
51. g5 {[%clk 0:00:10.2]} 51... f3 {[%clk 0:00:21.5]} 52. g6 {[%clk 0:00:11]}
52... f2 {[%clk 0:00:22.3]} 53. g7 {[%clk 0:00:11.9]} 53... f1=Q {[%clk
0:00:22.8]} 54. g8=Q {[%clk 0:00:12.8]} 54... Qe2+ {[%clk 0:00:23.4]} 0-1

[Event "Early-Titled-Tuesday-Blitz-February-27-2024"]
[Site "Chess.com"]
[Date "2024.02.27"]
[Round "4"]
[White "UnTucopalaTimba"]
[Black "WiktoriaPOL"]
[Result "1-0"]
[WhiteElo "1984"]
[BlackElo "2249"]
[TimeControl "180+1"]
[EndTime "8:38:39 PST"]
[Termination "UnTucopalaTimba won on time"]

1. e4 {[%clk 0:02:59.6]} 1... c5 {[%clk 0:02:59.4]} 2. Nf3 {[%clk 0:02:59.4]}
2... d6 {[%clk 0:02:59.3]} 3. Bb5+ {[%clk 0:02:58.5]} 3... Nd7 {[%clk
0:02:58.9]} 4. d4 {[%clk 0:02:57.9]} 4... cxd4 {[%clk 0:02:58.8]} 5. Qxd4 {[%clk
0:02:57.7]} 5... a6 {[%clk 0:02:58.6]} 6. Bxd7+ {[%clk 0:02:57.3]} 6... Bxd7
{[%clk 0:02:58.2]} 7. Bg5 {[%clk 0:02:57.2]} 7... Qc7 {[%clk 0:02:44.4]} 8. Nc3
{[%clk 0:02:51]} 8... e6 {[%clk 0:02:39.2]} 9. O-O {[%clk 0:02:35.7]} 9... h6
{[%clk 0:02:35.3]} 10. Bh4 {[%clk 0:02:34.6]} 10... Bc6 {[%clk 0:02:16.5]} 11.
Rad1 {[%clk 0:02:23.9]} 11... e5 {[%clk 0:02:00.1]} 12. Qd2 {[%clk 0:02:13.4]}
12... Nf6 {[%clk 0:01:37.2]} 13. Bxf6 {[%clk 0:02:02]} 13... gxf6 {[%clk
0:01:38.1]} 14. Nd5 {[%clk 0:02:02.1]} 14... Bxd5 {[%clk 0:01:35.8]} 15. Qxd5
{[%clk 0:02:02]} 15... Qc6 {[%clk 0:01:22.1]} 16. Rd3 {[%clk 0:01:40.1]} 16...
Rc8 {[%clk 0:00:57]} 17. c3 {[%clk 0:01:31.6]} 17... Qxd5 {[%clk 0:00:49.2]} 18.
Rxd5 {[%clk 0:01:31.1]} 18... Kd7 {[%clk 0:00:45.7]} 19. Rfd1 {[%clk 0:01:28.4]}
19... Ke6 {[%clk 0:00:45.1]} 20. Nh4 {[%clk 0:01:25.6]} 20... Rc6 {[%clk
0:00:35.2]} 21. Nf5 {[%clk 0:01:20.4]} 21... Rg8 {[%clk 0:00:23.3]} 22. Kf1
{[%clk 0:01:12.1]} 22... h5 {[%clk 0:00:21.5]} 23. g3 {[%clk 0:01:08.9]} 23...
b5 {[%clk 0:00:20.2]} 24. Ke2 {[%clk 0:00:55.1]} 24... Be7 {[%clk 0:00:19.6]}
25. Ra1 {[%clk 0:00:44.1]} 25... b4 {[%clk 0:00:10.2]} 26. Rc1 {[%clk
0:00:40.3]} 26... Rgc8 {[%clk 0:00:09.6]} 27. Kd2 {[%clk 0:00:37.8]} 27... bxc3+
{[%clk 0:00:09.1]} 28. Rxc3 {[%clk 0:00:37.5]} 28... Rc4 {[%clk 0:00:07.2]} 29.
f3 {[%clk 0:00:35.3]} 29... Rxc3 {[%clk 0:00:07.1]} 30. bxc3 {[%clk 0:00:34.9]}
30... Rb8 {[%clk 0:00:06.1]} 31. Kc2 {[%clk 0:00:34.5]} 31... Bf8 {[%clk
0:00:04.7]} 32. Ra5 {[%clk 0:00:32.7]} 32... Rb6 {[%clk 0:00:04.5]} 33. c4
{[%clk 0:00:30]} 33... Rc6 {[%clk 0:00:04.3]} 34. Kc3 {[%clk 0:00:29.2]} 34...
Kd7 {[%clk 0:00:03]} 35. Ne3 {[%clk 0:00:26.9]} 35... Ke6 {[%clk 0:00:02.8]} 36.
Nd5 {[%clk 0:00:26]} 36... f5 {[%clk 0:00:03.2]} 37. a4 {[%clk 0:00:22.3]} 37...
f4 {[%clk 0:00:03.3]} 38. Nb4 {[%clk 0:00:20.3]} 38... Rb6 {[%clk 0:00:03.2]}
39. Rxa6 {[%clk 0:00:19.9]} 39... Rxa6 {[%clk 0:00:03.6]} 40. Nxa6 {[%clk
0:00:20]} 40... fxg3 {[%clk 0:00:03.8]} 41. hxg3 {[%clk 0:00:20.2]} 41... Bh6
{[%clk 0:00:04.3]} 42. Nb4 {[%clk 0:00:19.7]} 42... Bf4 {[%clk 0:00:03.2]} 43.
gxf4 {[%clk 0:00:17.1]} 43... h4 {[%clk 0:00:03.5]} 44. Nd3 {[%clk 0:00:18]}
44... h3 {[%clk 0:00:03.9]} 45. Nf2 {[%clk 0:00:18.1]} 45... exf4 {[%clk
0:00:03.7]} 46. Nxh3 {[%clk 0:00:17.9]} 46... Kd7 {[%clk 0:00:02.5]} 47. Nxf4
{[%clk 0:00:18]} 47... Kc7 {[%clk 0:00:02.5]} 48. Nd5+ {[%clk 0:00:18.3]} 48...
Kc6 {[%clk 0:00:02.6]} 49. a5 {[%clk 0:00:18.4]} 49... Kb7 {[%clk 0:00:01.4]}
50. Kb4 {[%clk 0:00:18.4]} 1-0